bitfinex/quotes_SOLUSD_20250101
["timestamp","ask_amount","ask_price","bid_price","bid_amount"]
[1735764196116,10.21764232,194.33,194.27,10.21764232]
[1735764196287,10.21764232,194.32,194.25,12.6902596]
[1735764196496,6.598,194.37,194.25,12.6902596]
[1735764196497,10.21764232,194.31,194.25,12.6902596]
[1735764196814,10.21764232,194.3,194.24,10.21764232]
[1735764196994,10.21764232,194.3,194.25,23.776884]
[1735764198010,10.21764232,194.41,194.3,23.776884]
[1735764198315,10.21764232,194.41,194.35,23.776884]
[1735764198499,10.21764232,194.4,194.34,23.776884]
[1735764198692,10.21764232,194.39,194.34,23.776884]
[1735764198877,10.21764232,194.39,194.33,23.776884]
[1735764199789,10.21764232,194.4,194.33,10.21764232]
[1735764199988,10.21764232,194.41,194.35,23.776884]
[1735764200248,20.0,194.43,194.35,23.776884]
[1735764200401,10.21764232,194.42,194.35,10.21764232]
[1735764201595,10.21764232,194.4,194.33,10.21764232]
[1735764202198,10.21764232,194.4,194.34,23.776884]
[1735764202811,10.21764232,194.41,194.34,10.21764232]
[1735764204727,5.1432,194.44,194.34,10.21764232]
[1735764205016,10.21764232,194.42,194.34,33.99452632]
[1735764205226,10.21764232,194.42,194.35,33.99452632]
[1735764206305,10.21764232,194.4,194.33,31.86474232]
[1735764207228,10.21764232,194.39,194.33,21.6471]
[1735764207427,10.21764232,194.39,194.34,23.776884]
[1735764209353,10.21764232,194.38,194.34,23.776884]
[1735764210649,10.21764232,194.39,194.34,23.776884]
[1735764221374,10.21764232,194.4,194.34,23.776884]
[1735764221670,10.21764232,194.39,194.34,23.776884]
[1735764222564,10.21764232,194.38,194.34,23.776884]
[1735764224086,10.21764232,194.39,194.34,23.776884]
[1735764226906,10.21764232,194.41,194.34,23.776884]
[1735764228576,10.21764232,194.42,194.34,34.76621132]
[1735764228784,5.1427,194.45,194.36,10.21764232]
[1735764229003,10.21764232,194.43,194.35,33.99452632]
[1735764230504,10.21764232,194.42,194.35,33.99452632]
[1735764231189,5.1427,194.45,194.36,10.21764232]
[1735764231387,10.21764232,194.43,194.36,10.21764232]
[1735764232702,10.21764232,194.44,194.38,23.776884]
[1735764232902,5.33344373,194.47,194.4,23.776884]
[1735764233099,10.21764232,194.49,194.42,23.776884]
[1735764233282,10.21764232,194.49,194.42,33.99452632]
[1735764233683,10.21764232,194.48,194.42,23.776884]
[1735764234177,5.33344373,194.53,194.46,43.776884]
[1735764234383,10.21764232,194.53,194.46,43.776884]
[1735764234703,10.21764232,194.52,194.46,43.776884]
[1735764236584,10.21764232,194.53,194.46,43.776884]
[1735764236985,5.1394,194.58,194.46,43.776884]
[1735764237190,10.21764232,194.53,194.46,43.776884]
[1735764238011,10.21764232,194.52,194.46,43.776884]
[1735764238312,10.21764232,194.47,194.43,6.4986]
[1735764238615,10.21764232,194.47,194.41,1.6662]
[1735764238616,10.21764232,194.46,194.42,23.776884]
[1735764238789,10.21764232,194.47,194.42,23.776884]
[1735764240416,10.21764232,194.49,194.42,33.99452632]
[1735764241008,10.21764232,194.48,194.42,23.776884]
[1735764241327,5.1398,194.56,194.42,23.776884]
[1735764241328,10.21764232,194.47,194.42,23.776884]
[1735764242787,10.21764232,194.46,194.42,23.776884]
[1735764243200,10.21764232,194.44,194.41,1.6662]
[1735764243405,10.21764232,194.44,194.39,23.776884]
[1735764243923,10.21764232,194.45,194.39,23.776884]
[1735764244303,10.21764232,194.46,194.39,33.99452632]
[1735764244497,10.21764232,194.47,194.41,23.776884]
[1735764244706,10.21764232,194.48,194.41,33.99452632]
[1735764245126,5.1408,194.52,194.41,33.99452632]
[1735764245339,10.21764232,194.48,194.41,33.99452632]
[1735764248319,10.21764232,194.48,194.41,33.49452632]
[1735764248689,5.1408,194.52,194.41,33.49452632]
[1735764248894,5.33344373,194.54,194.45,10.21764232]
[1735764249229,10.21764232,194.52,194.45,10.21764232]
[1735764249720,5.33344373,194.54,194.45,10.21764232]
[1735764250029,10.21764232,194.52,194.45,10.21764232]
[1735764250425,5.33344373,194.54,194.46,23.776884]
[1735764250610,10.21764232,194.52,194.46,23.776884]
[1735764251502,5.33344373,194.54,194.46,23.776884]
[1735764251836,10.21764232,194.52,194.46,23.776884]
[1735764252205,10.21764232,194.52,194.46,30.142884]
[1735764253528,5.33344373,194.54,194.46,30.142884]
[1735764253720,10.21764232,194.52,194.46,30.142884]
[1735764255334,10.21764232,194.54,194.48,23.776884]
[1735764255713,10.21764232,194.56,194.48,33.99452632]
[1735764255918,10.21764232,194.56,194.48,10.21764232]
[1735764257621,10.21764232,194.56,194.47,24.54792911]
[1735764257820,10.21764232,194.56,194.48,10.21764232]
[1735764258022,10.21764232,194.55,194.48,10.21764232]
[1735764258336,10.21764232,194.56,194.5,23.776884]
[1735764259336,10.21764232,194.55,194.5,23.776884]
[1735764259541,10.21764232,194.55,194.48,10.21764232]
[1735764259846,10.21764232,194.55,194.48,33.99452632]
[1735764260231,10.21764232,194.55,194.49,23.776884]
[1735764262074,10.21764232,194.55,194.48,23.776884]
[1735764262345,4.21346131,194.63,194.52,23.776884]
[1735764262558,10.21764232,194.61,194.54,33.99452632]
[1735764262925,10.21764232,194.6,194.54,23.776884]
[1735764263242,10.21764232,194.56,194.53,7.8801]
[1735764263542,10.21764232,194.57,194.54,23.776884]
[1735764263727,10.21764232,194.58,194.54,23.776884]
[1735764264762,10.21764232,194.57,194.54,23.776884]
[1735764267355,10.21764232,194.56,194.49,10.21764232]
[1735764267554,10.21764232,194.55,194.48,18.09774232]
[1735764267884,40.87056928,194.6,194.48,18.09774232]
[1735764268160,5.1387,194.61,194.51,10.21764232]
[1735764268373,10.21764232,194.58,194.51,10.21764232]
[1735764269556,10.21764232,194.57,194.51,23.776884]
[1735764272555,5.1387,194.61,194.49,33.99452632]
[1735764272556,10.21764232,194.56,194.49,33.99452632]
[1735764274987,10.21764232,194.56,194.49,23.776884]
[1735764276582,5.1387,194.61,194.51,10.21764232]
[1735764276881,10.21764232,194.58,194.51,23.776884]
[1735764278478,10.21764232,194.58,194.49,23.776884]
[1735764278683,10.21764232,194.57,194.51,23.776884]
[1735764282181,10.21764232,194.58,194.52,23.776884]
[1735764283484,10.21764232,194.58,194.51,10.21764232]
[1735764285189,10.21764232,194.59,194.53,23.776884]
[1735764285371,9.71764232,194.59,194.53,23.776884]
[1735764285572,10.21764232,194.58,194.51,10.21764232]
[1735764285876,10.21764232,194.58,194.52,23.776884]
[1735764286060,10.21764232,194.59,194.52,23.776884]
[1735764286266,10.21764232,194.59,194.52,33.99452632]
[1735764286482,10.21764232,194.59,194.52,23.776884]
[1735764286783,10.21764232,194.59,194.52,33.99452632]
[1735764287285,10.21764232,194.59,194.52,23.776884]
[1735764287585,10.21764232,194.58,194.52,23.776884]
[1735764289390,10.21764232,194.59,194.52,33.99452632]
[1735764289965,10.21764232,194.63,194.56,43.776884]
[1735764290163,10.21764232,194.63,194.56,53.99452632]
[1735764290781,10.21764232,194.62,194.56,53.99452632]
[1735764290967,10.21764232,194.61,194.56,43.776884]
[1735764291171,10.21764232,194.6,194.56,43.776884]
[1735764291363,10.21764232,194.6,194.56,23.776884]
[1735764291669,9.35051265,194.68,194.51,7.7017]
[1735764291670,10.21764232,194.57,194.51,7.7017]
[1735764292071,10.21764232,194.57,194.52,23.776884]
[1735764292385,5.1383,194.62,194.51,17.91934232]
[1735764292386,10.21764232,194.58,194.51,17.91934232]
[1735764292786,10.21764232,194.58,194.51,7.7017]
[1735764293089,10.21764232,194.55,194.51,7.7017]
[1735764293979,10.21764232,194.55,194.52,23.776884]
[1735764294168,10.21764232,194.54,194.52,23.776884]
[1735764295003,10.21764232,194.53,194.47,6.1841]
[1735764295163,10.21764232,194.54,194.48,23.776884]
[1735764295368,10.21764232,194.54,194.48,33.99452632]
[1735764295769,10.21764232,194.55,194.48,33.99452632]
[1735764298297,10.21764232,194.53,194.48,23.776884]
[1735764298590,5.1395,194.58,194.47,6.1841]
[1735764298591,10.21764232,194.51,194.47,6.1841]
[1735764298795,10.21764232,194.51,194.46,1.5176]
[1735764299578,10.21764232,194.52,194.47,23.776884]
[1735764300884,10.21764232,194.51,194.47,23.776884]
[1735764302095,10.21764232,194.52,194.47,23.776884]
[1735764302494,10.21764232,194.54,194.47,33.99452632]
[1735764302712,10.21764232,194.54,194.48,10.21764232]
[1735764302895,10.21764232,194.55,194.48,10.21764232]
[1735764303485,10.21764232,194.54,194.48,10.21764232]
[1735764303699,10.21764232,194.54,194.47,33.99452632]
[1735764303900,10.21764232,194.52,194.47,23.776884]
[1735764304418,10.21764232,194.52,194.46,1.5176]
[1735764304582,10.21764232,194.53,194.46,31.73524232]
[1735764304781,10.21764232,194.54,194.48,10.21764232]
[1735764304977,10.21764232,194.51,194.47,23.776884]
[1735764305301,10.21764232,194.52,194.47,23.776884]
[1735764305907,10.21764232,194.54,194.47,33.99452632]
[1735764306209,10.21764232,194.55,194.49,23.776884]
[1735764306410,10.21764232,194.57,194.51,23.776884]
[1735764306619,10.21764232,194.58,194.53,23.776884]
[1735764307620,5.22034373,194.65,194.53,10.98860852]
[1735764307801,10.21764232,194.6,194.53,10.21764232]
[1735764308321,10.21764232,194.61,194.53,10.21764232]
[1735764308489,10.21764232,194.6,194.53,10.21764232]
[1735764310321,10.21764232,194.61,194.55,23.776884]
[1735764311006,10.21764232,194.6,194.54,23.776884]
[1735764311711,10.21764232,194.58,194.55,20.0]
[1735764312413,10.21764232,194.58,194.56,23.776884]
[1735764312931,10.21764232,194.59,194.56,23.776884]
[1735764313100,10.21764232,194.6,194.56,23.776884]
[1735764314722,10.21764232,194.6,194.53,10.21764232]
[1735764315023,10.21764232,194.6,194.55,23.776884]
[1735764316118,10.21764232,194.61,194.55,23.776884]
[1735764316421,10.21764232,194.61,194.55,33.99452632]
[1735764317730,10.21764232,194.61,194.55,23.776884]
[1735764321125,10.21764232,194.61,194.55,33.99452632]
[1735764322334,10.35794373,194.65,194.55,23.776884]
[1735764322624,10.21764232,194.61,194.55,23.776884]
[1735764323430,10.21764232,194.6,194.55,23.776884]
[1735764323812,10.21764232,194.61,194.55,23.776884]
[1735764324728,10.35794373,194.65,194.57,23.776884]
[1735764324729,10.21764232,194.62,194.57,23.776884]
[1735764326532,10.21764232,194.62,194.56,23.776884]
[1735764327946,5.1376,194.65,194.55,23.776884]
[1735764327947,10.21764232,194.61,194.55,23.776884]
[1735764328332,10.21764232,194.6,194.55,23.776884]
[1735764328534,10.21764232,194.61,194.55,23.776884]
[1735764329232,10.21764232,194.6,194.55,23.776884]
[1735764329438,10.21764232,194.58,194.53,20.0]
[1735764329608,10.21764232,194.58,194.55,23.776884]
[1735764330005,10.21764232,194.56,194.49,0.77083911]
[1735764330308,10.21764232,194.55,194.54,23.776884]
[1735764330505,10.21764232,194.55,194.5,17.855543]
[1735764330709,40.87056928,194.6,194.5,17.855543]
[1735764330710,10.21764232,194.53,194.5,7.6379]
[1735764331015,10.21764232,194.54,194.51,23.776884]
[1735764332453,9.71764232,194.54,194.51,23.776884]
[1735764333454,10.21764232,194.55,194.51,23.776884]
[1735764333640,10.21764232,194.54,194.51,23.776884]
[1735764334255,10.21764232,194.55,194.51,23.776884]
[1735764334557,10.21764232,194.58,194.51,34.76554556]
[1735764334734,10.21764232,194.58,194.51,33.99452632]
[1735764334928,10.21764232,194.52,194.45,17.855543]
[1735764335249,10.21764232,194.5,194.45,17.855543]
[1735764335469,10.21764232,194.5,194.44,23.776884]
[1735764335753,10.21764232,194.5,194.43,23.776884]
[1735764335955,10.21764232,194.5,194.42,10.21764232]
[1735764336450,10.21764232,194.5,194.46,23.776884]
[1735764336635,10.21764232,194.51,194.44,10.21764232]
[1735764337262,10.21764232,194.51,194.45,23.776884]
[1735764337548,10.21764232,194.52,194.45,33.99452632]
[1735764337929,10.21764232,194.51,194.45,23.776884]
[1735764338126,5.1399,194.56,194.45,23.776884]
[1735764338327,10.21764232,194.53,194.46,10.21764232]
[1735764338531,10.21764232,194.54,194.51,20.0]
[1735764338746,5.139,194.59,194.51,20.0]
[1735764338747,10.21764232,194.53,194.51,20.0]
[1735764339250,10.21764232,194.53,194.51,23.776884]
[1735764339450,5.139,194.59,194.51,23.776884]
[1735764339451,10.21764232,194.54,194.51,23.776884]
[1735764339754,10.21764232,194.55,194.51,20.0]
[1735764340150,10.21764232,194.56,194.51,20.0]
[1735764340350,10.21764232,194.57,194.51,43.776884]
[1735764340547,10.21764232,194.58,194.52,23.776884]
[1735764340755,10.21764232,194.59,194.52,33.99452632]
[1735764340945,10.21764232,194.58,194.52,23.776884]
[1735764343260,10.21764232,194.59,194.52,33.99452632]
[1735764343565,10.21764232,194.59,194.52,23.776884]
[1735764343937,10.21764232,194.58,194.52,23.776884]
[1735764344337,10.21764232,194.57,194.52,23.776884]
[1735764344541,10.21764232,194.56,194.52,23.776884]
[1735764344957,10.21764232,194.57,194.52,23.776884]
[1735764347274,10.21764232,194.55,194.48,1.6043]
[1735764347572,10.21764232,194.53,194.48,1.6043]
[1735764347765,10.21764232,194.52,194.48,1.6043]
[1735764348084,10.21764232,194.51,194.47,6.2293]
[1735764348247,10.21764232,194.51,194.48,23.776884]
[1735764348668,10.21764232,194.51,194.47,6.2293]
[1735764349043,10.21764232,194.51,194.48,23.776884]
[1735764349580,10.21764232,194.51,194.45,20.0]
[1735764349757,10.21764232,194.51,194.46,23.776884]
[1735764350381,45.87056928,194.6,194.46,23.776884]
[1735764350382,10.21764232,194.52,194.46,23.776884]
[1735764350676,10.21764232,194.55,194.49,10.21764232]
[1735764350891,5.139,194.59,194.49,10.21764232]
[1735764350892,10.21764232,194.56,194.49,10.21764232]
[1735764351041,10.21764232,194.56,194.5,23.776884]
[1735764351241,10.21764232,194.54,194.5,23.776884]
[1735764351480,10.21764232,194.54,194.52,23.776884]
[1735764351879,10.21764232,194.54,194.48,10.21764232]
[1735764352179,10.21764232,194.53,194.46,33.99452632]
[1735764352482,10.21764232,194.52,194.45,10.21764232]
[1735764352659,10.21764232,194.51,194.44,10.21764232]
[1735764352861,10.21764232,194.49,194.45,20.0]
[1735764353069,5.139,194.59,194.45,20.77125868]
[1735764353358,10.21764232,194.55,194.5,23.776884]
[1735764355355,10.21764232,194.54,194.48,10.21764232]
[1735764355562,10.21764232,194.54,194.49,23.776884]
[1735764356571,10.21764232,194.54,194.48,23.776884]
[1735764358171,10.21764232,194.53,194.48,23.776884]
[1735764358761,10.21764232,194.51,194.45,23.776884]
[1735764358961,10.21764232,194.51,194.45,33.99452632]
[1735764361475,10.21764232,194.52,194.47,23.776884]
[1735764361679,10.21764232,194.53,194.47,33.99452632]
[1735764362097,10.21764232,194.52,194.47,23.776884]
[1735764362589,10.21764232,194.54,194.48,23.776884]
[1735764362890,10.21764232,194.55,194.48,33.99452632]
[1735764363076,10.21764232,194.55,194.5,23.776884]
[1735764363379,10.21764232,194.56,194.5,23.776884]
[1735764365363,10.21764232,194.57,194.5,33.99452632]
[1735764365690,10.21764232,194.57,194.52,23.776884]
[1735764367661,10.21764232,194.56,194.5,10.21764232]
[1735764367861,10.21764232,194.57,194.51,23.776884]
[1735764369172,10.21764232,194.56,194.51,23.776884]
[1735764369791,10.21764232,194.56,194.53,23.776884]
[1735764371188,10.21764232,194.57,194.53,23.776884]
[1735764371487,10.21764232,194.58,194.53,23.776884]
[1735764372390,10.21764232,194.57,194.53,23.776884]
[1735764372692,10.21764232,194.57,194.51,23.776884]
[1735764372886,10.21764232,194.57,194.5,11.83054232]
[1735764373194,10.21764232,194.56,194.52,20.0]
[1735764373978,5.1386,194.61,194.52,20.0]
[1735764373979,10.21764232,194.57,194.53,23.776884]
[1735764374505,5.1386,194.61,194.53,23.776884]
[1735764375102,10.21764232,194.6,194.53,24.54780914]
[1735764375273,10.21764232,194.61,194.53,34.76545146]
[1735764375472,10.21764232,194.61,194.55,23.776884]
[1735764376476,10.21764232,194.59,194.54,23.776884]
[1735764376891,10.21764232,194.59,194.53,0.77092514]
[1735764376892,10.21764232,194.59,194.53,23.776884]
[1735764377281,10.21764232,194.57,194.53,23.776884]
[1735764377682,10.21764232,194.57,194.53,20.0]
[1735764378276,10.21764232,194.58,194.53,20.0]
[1735764378679,10.21764232,194.6,194.54,23.776884]
[1735764379276,10.21764232,194.59,194.53,43.776884]
[1735764379897,10.21764232,194.6,194.53,53.99452632]
[1735764380098,10.21764232,194.59,194.53,43.776884]
[1735764381019,5.1374,194.65,194.53,43.776884]
[1735764381020,10.21764232,194.58,194.53,43.776884]
[1735764381597,10.21764232,194.55,194.5,1.6129]
[1735764381975,10.21764232,194.55,194.53,23.776884]
[1735764382676,10.21764232,194.54,194.46,10.21764232]
[1735764382894,6.6561,194.59,194.45,11.75424232]
[1735764382895,10.21764232,194.52,194.45,11.75424232]
[1735764383218,10.21764232,194.52,194.46,10.21764232]
[1735764383417,10.21764232,194.52,194.47,23.776884]
[1735764383576,10.21764232,194.52,194.46,10.21764232]
[1735764384207,10.21764232,194.52,194.47,23.776884]
[1735764385414,10.21764232,194.53,194.47,23.776884]
[1735764385988,6.6561,194.59,194.51,20.0]
[1735764386186,6.6561,194.59,194.49,10.98862383]
[1735764386410,10.21764232,194.56,194.49,10.98862383]
[1735764386897,10.21764232,194.56,194.51,23.776884]
[1735764387098,10.21764232,194.55,194.5,23.776884]
[1735764388318,10.21764232,194.55,194.51,20.0]
[1735764388786,10.21764232,194.55,194.49,33.99452632]
[1735764388986,10.21764232,194.56,194.49,33.99452632]
[1735764389703,10.21764232,194.57,194.53,20.0]
[1735764390178,10.21764232,194.58,194.52,23.776884]
[1735764392936,10.21764232,194.59,194.55,23.776884]
[1735764393646,10.21764232,194.59,194.54,23.776884]
[1735764393818,10.21764232,194.6,194.54,23.776884]
[1735764395907,10.21764232,194.59,194.54,23.776884]
[1735764396107,10.21764232,194.58,194.52,23.776884]
[1735764396616,1.5069,194.63,194.52,33.99452632]
[1735764396811,10.21764232,194.61,194.54,33.99452632]
[1735764397751,6.5922,194.66,194.56,10.21764232]
[1735764397926,6.6435,194.68,194.6,23.776884]
[1735764398127,10.21764232,194.64,194.6,23.776884]
[1735764398446,10.21764232,194.64,194.58,23.776884]
[1735764398644,10.21764232,194.63,194.58,24.54753047]
[1735764399208,10.21764232,194.63,194.58,23.776884]
[1735764400747,10.21764232,194.6,194.52,2.34056215]
[1735764400941,10.21764232,194.59,194.53,10.21764232]
[1735764401112,10.21764232,194.58,194.52,1.5699]
[1735764401446,10.21764232,194.58,194.51,16.77084232]
[1735764401747,10.21764232,194.58,194.55,20.0]
[1735764401953,10.21764232,194.58,194.56,23.776884]
[1735764402242,10.21764232,194.59,194.56,23.776884]
[1735764405962,10.21764232,194.6,194.56,23.776884]
[1735764406121,10.21764232,194.61,194.56,23.776884]
[1735764406985,10.21764232,194.62,194.56,23.776884]
[1735764407876,10.21764232,194.63,194.56,33.99452632]
[1735764408177,10.21764232,194.64,194.6,23.776884]
[1735764408354,10.21764232,194.64,194.58,23.776884]
[1735764410765,1.5069,194.68,194.62,23.776884]
[1735764410966,10.21764232,194.65,194.62,23.776884]
[1735764411169,27.22783354,194.7,194.62,23.776884]
[1735764411386,10.21764232,194.69,194.62,33.99452632]
[1735764411586,22.09173354,194.7,194.64,23.776884]
[1735764411811,32.30937586,194.7,194.64,23.776884]
[1735764412094,22.09173354,194.7,194.68,23.776884]
[1735764412298,22.09173354,194.7,194.69,23.776884]
[1735764412502,22.09173354,194.7,194.69,43.776884]
[1735764413612,22.09173354,194.7,194.69,23.776884]
[1735764418482,22.09173354,194.7,194.69,33.99452632]
[1735764422403,22.09173354,194.7,194.69,23.776884]
[1735764423096,22.09173354,194.7,194.69,33.99452632]
[1735764424907,22.09173354,194.7,194.69,23.776884]
[1735764426611,22.09173354,194.7,194.69,33.99452632]
[1735764432298,22.09173354,194.7,194.69,10.21764232]
[1735764432704,22.09173354,194.7,194.69,23.776884]
[1735764433112,22.09173354,194.7,194.69,33.99452632]
[1735764439224,22.09173354,194.7,194.69,23.776884]
[1735764439530,22.09173354,194.7,194.69,33.99452632]
[1735764447511,22.09173354,194.7,194.69,23.776884]
[1735764447718,22.09173354,194.7,194.68,0.77011402]
[1735764447924,22.09173354,194.7,194.68,10.21764232]
[1735764449018,22.09173354,194.7,194.69,23.776884]
[1735764452135,22.09173354,194.7,194.68,23.776884]
[1735764456445,22.09173354,194.7,194.69,33.99452632]
[1735764456737,22.09173354,194.7,194.69,74.8650956]
[1735764456942,22.09173354,194.7,194.69,80.0250956]
[1735764457241,22.09173354,194.7,194.69,74.8650956]
[1735764457443,22.09173354,194.7,194.69,33.99452632]
[1735764460736,22.09173354,194.7,194.69,35.41574607]
[1735764461743,22.09173354,194.7,194.69,1.42121975]
[1735764461950,22.09173354,194.7,194.68,10.21764232]
[1735764462332,22.09173354,194.7,194.69,10.21764232]
[1735764462938,21.59173354,194.7,194.69,10.21764232]
[1735764463325,21.59173354,194.7,194.69,23.776884]
[1735764465324,21.59173354,194.7,194.69,10.21764232]
[1735764468540,21.59173354,194.7,194.67,24.54712213]
[1735764468744,21.59173354,194.7,194.69,10.21764232]
[1735764469155,21.59173354,194.7,194.67,24.54712213]
[1735764469365,21.59173354,194.7,194.66,20.0]
[1735764469662,21.59173354,194.7,194.68,10.21764232]
[1735764469954,21.59173354,194.7,194.67,33.99452632]
[1735764470351,21.59173354,194.7,194.65,10.21764232]
[1735764470540,21.59173354,194.7,194.62,25.99423596]
[1735764470541,21.59173354,194.7,194.63,0.77031875]
[1735764470741,21.59173354,194.7,194.64,10.21764232]
[1735764471140,21.59173354,194.7,194.65,1.42111296]
[1735764471958,21.59173354,194.7,194.64,10.21764232]
[1735764473058,31.80937586,194.7,194.64,10.21764232]
[1735764474367,31.80937586,194.7,194.62,23.776884]
[1735764474653,31.80937586,194.7,194.65,23.776884]
[1735764475048,10.21764232,194.69,194.65,23.776884]
[1735764475252,10.21764232,194.69,194.64,23.776884]
[1735764476853,10.21764232,194.67,194.6,10.21764232]
[1735764477232,10.21764232,194.65,194.59,10.21764232]
[1735764477452,10.21764232,194.63,194.57,10.21764232]
[1735764477640,10.21764232,194.62,194.56,10.21764232]
[1735764477846,10.21764232,194.62,194.58,1.41870147]
[1735764478854,10.21764232,194.62,194.57,23.776884]
[1735764479060,10.21764232,194.62,194.56,10.21764232]
[1735764479435,10.21764232,194.62,194.56,23.776884]
[1735764480062,10.21764232,194.62,194.56,10.21764232]
[1735764480281,10.21764232,194.65,194.59,10.21764232]
[1735764480445,10.21764232,194.66,194.61,23.776884]
[1735764481166,10.21764232,194.65,194.59,10.21764232]
[1735764481360,1.5908,194.68,194.63,23.776884]
[1735764481569,1.5908,194.68,194.63,33.99452632]
[1735764482141,1.5908,194.68,194.63,23.776884]
[1735764482359,11.80844232,194.68,194.63,23.776884]
[1735764482559,10.21764232,194.66,194.62,23.776884]
[1735764482955,10.21764232,194.66,194.61,23.776884]
[1735764483364,10.21764232,194.66,194.6,23.776884]
[1735764483536,10.21764232,194.65,194.6,23.776884]
[1735764483742,10.21764232,194.65,194.59,10.21764232]
[1735764483743,10.21764232,194.64,194.59,23.776884]
[1735764483956,10.21764232,194.63,194.57,10.21764232]
[1735764484366,5.1368,194.67,194.55,10.21764232]
[1735764484367,10.21764232,194.61,194.55,10.21764232]
[1735764484765,10.21764232,194.61,194.56,23.776884]
[1735764485268,10.21764232,194.6,194.51,10.217642]
[1735764485569,10.21764232,194.6,194.54,30.21764232]
[1735764485748,10.21764232,194.6,194.54,20.0]
[1735764485940,10.21764232,194.59,194.53,10.21764232]
[1735764486149,10.21764232,194.58,194.51,10.21764232]
[1735764486348,10.21764232,194.58,194.52,33.99452632]
[1735764486657,10.21764232,194.59,194.54,23.776884]
[1735764487261,10.21764232,194.59,194.52,30.21764232]
[1735764487589,1.6529,194.58,194.52,10.21764232]
[1735764487790,10.21764232,194.57,194.48,10.217643]
[1735764488067,10.21764232,194.55,194.48,10.21764232]
[1735764488245,1.6529,194.58,194.52,10.21764232]
[1735764488574,1.6529,194.58,194.53,10.21764232]
[1735764488951,1.6529,194.58,194.54,23.776884]
[1735764489249,11.87054232,194.58,194.52,10.21764232]
[1735764489462,1.6529,194.58,194.52,10.21764232]
[1735764489653,1.6529,194.58,194.56,23.776884]
[1735764490166,6.002,194.61,194.56,23.776884]
[1735764490763,10.21764232,194.6,194.54,10.21764232]
[1735764491084,16.21964232,194.61,194.54,10.21764232]
[1735764491253,16.21964232,194.61,194.55,10.21764232]
[1735764491254,6.002,194.61,194.55,10.21764232]
[1735764491848,11.82474232,194.63,194.57,23.776884]
[1735764492052,11.82474232,194.63,194.57,33.99452632]
[1735764492570,11.82474232,194.63,194.57,23.776884]
[1735764493962,10.21764232,194.62,194.56,23.776884]
[1735764497575,11.82474232,194.63,194.56,10.21764232]
[1735764498475,1.6071,194.63,194.59,10.21764232]
[1735764498677,6.2727,194.66,194.61,23.776884]
[1735764498885,10.21764232,194.67,194.61,23.776884]
[1735764499576,10.21764232,194.66,194.6,23.776884]
[1735764499973,10.21764232,194.65,194.6,23.776884]
[1735764501484,10.21764232,194.66,194.6,23.776884]
[1735764501665,10.21764232,194.67,194.6,10.21764232]
[1735764502365,10.21764232,194.66,194.6,23.776884]
[1735764502573,10.21764232,194.67,194.6,33.99452632]
[1735764502981,10.21764232,194.66,194.6,23.776884]
[1735764503699,10.21764232,194.64,194.57,10.21764232]
[1735764503903,5.0,194.66,194.54,0.77062802]
[1735764504078,10.21764232,194.57,194.5,10.21764232]
[1735764504268,10.21764232,194.58,194.51,33.99452632]
[1735764504472,21.63847941,194.64,194.53,33.99452632]
[1735764504781,21.63847941,194.64,194.54,23.776884]
[1735764504979,10.21764232,194.61,194.54,10.21764232]
[1735764505181,10.21764232,194.62,194.55,10.21764232]
[1735764505386,21.63847941,194.64,194.56,10.21764232]
[1735764505387,10.21764232,194.63,194.56,10.21764232]
[1735764505580,10.21764232,194.61,194.55,23.776884]
[1735764507772,10.21764232,194.62,194.55,33.99452632]
[1735764507977,10.21764232,194.64,194.58,23.776884]
[1735764508160,1.5583,194.65,194.6,23.776884]
[1735764509085,11.77594232,194.65,194.58,10.21764232]
[1735764512071,10.21764232,194.63,194.57,23.776884]
[1735764512468,10.21764232,194.64,194.57,23.776884]
[1735764512774,11.77594232,194.65,194.58,10.21764232]
[1735764512974,21.59173354,194.7,194.65,23.776884]
[1735764513385,21.59173354,194.7,194.67,23.776884]
[1735764513899,21.59173354,194.7,194.64,33.99452632]
[1735764514492,31.80937586,194.7,194.64,23.776884]
[1735764514694,21.59173354,194.7,194.64,23.776884]
[1735764514992,21.59173354,194.7,194.65,10.21764232]
[1735764515169,21.59173354,194.7,194.66,23.776884]
[1735764515497,21.59173354,194.7,194.62,20.0]
[1735764515498,21.59173354,194.7,194.64,33.99452632]
[1735764516371,21.59173354,194.7,194.65,0.77041696]
[1735764516567,21.59173354,194.7,194.66,33.99452632]
[1735764517981,21.59173354,194.7,194.66,23.776884]
[1735764521392,21.59173354,194.7,194.62,20.0]
[1735764521393,21.59173354,194.7,194.64,33.99452632]
[1735764521583,21.59173354,194.7,194.65,23.776884]